[Event "Late-Titled-Tuesday-Blitz-January-23-2024"]
[Site "Chess.com"]
[Date "2024.01.23"]
[Round "4"]
[White "GoltsevDmitry2000"]
[Black "Defend1r"]
[Result "1-0"]
[WhiteElo "2813"]
[BlackElo "2562"]
[TimeControl "180+1"]
[EndTime "14:38:13 PST"]
[Termination "GoltsevDmitry2000 won by checkmate"]

1. e4 {[%clk 0:02:59.4]} 1... c5 {[%clk 0:02:59.8]} 2. Nf3 {[%clk 0:02:59]} 2...
d6 {[%clk 0:03:00.1]} 3. d4 {[%clk 0:02:59.1]} 3... cxd4 {[%clk 0:03:00.5]} 4.
Nxd4 {[%clk 0:03:00]} 4... Nf6 {[%clk 0:03:00.7]} 5. Nc3 {[%clk 0:03:00.2]} 5...
a6 {[%clk 0:03:01.2]} 6. Be2 {[%clk 0:03:00.2]} 6... e5 {[%clk 0:03:01.4]} 7.
Nf5 {[%clk 0:02:59.9]} 7... d5 {[%clk 0:02:44.9]} 8. Bg5 {[%clk 0:02:59]} 8...
d4 {[%clk 0:02:28.5]} 9. Bxf6 {[%clk 0:02:54.1]} 9... Qxf6 {[%clk 0:02:16.2]}
10. Nd5 {[%clk 0:02:52.2]} 10... Qd8 {[%clk 0:02:16.8]} 11. Bf3 {[%clk
0:02:50.4]} 11... g6 {[%clk 0:02:14.4]} 12. Nxd4 {[%clk 0:02:43.1]} 12... Bg7
{[%clk 0:01:46]} 13. Nb3 {[%clk 0:02:39.3]} 13... O-O {[%clk 0:01:45.7]} 14. O-O
{[%clk 0:02:38.8]} 14... Nc6 {[%clk 0:01:41.7]} 15. c3 {[%clk 0:02:37.7]} 15...
f5 {[%clk 0:01:35.6]} 16. Qe2 {[%clk 0:02:36.8]} 16... Rf7 {[%clk 0:01:21.6]}
17. Rad1 {[%clk 0:02:32.2]} 17... f4 {[%clk 0:01:14.8]} 18. Nxf4 {[%clk
0:02:27.7]} 18... Qg5 {[%clk 0:01:07.2]} 19. Nd5 {[%clk 0:02:25.6]} 19... Bh3
{[%clk 0:01:06.3]} 20. Qe3 {[%clk 0:02:18.1]} 20... Qxe3 {[%clk 0:00:58.7]} 21.
Nxe3 {[%clk 0:02:16.5]} 21... Rxf3 {[%clk 0:00:57.4]} 22. gxf3 {[%clk
0:02:15.9]} 22... Bxf1 {[%clk 0:00:58.3]} 23. Kxf1 {[%clk 0:02:16.3]} 23... Rd8
{[%clk 0:00:56.2]} 24. Rxd8+ {[%clk 0:02:14.8]} 24... Nxd8 {[%clk 0:00:57.1]}
25. Ke2 {[%clk 0:02:09.7]} 25... Kf7 {[%clk 0:00:53]} 26. Nc4 {[%clk 0:02:08.3]}
26... Ke6 {[%clk 0:00:46.1]} 27. Nc5+ {[%clk 0:02:07.5]} 27... Ke7 {[%clk
0:00:45.1]} 28. Kd3 {[%clk 0:02:00]} 28... Bh6 {[%clk 0:00:36.8]} 29. h3 {[%clk
0:01:33.7]} 29... Bf4 {[%clk 0:00:36.6]} 30. b4 {[%clk 0:01:28.9]} 30... Bh2
{[%clk 0:00:30.7]} 31. a4 {[%clk 0:01:26.7]} 31... Bf4 {[%clk 0:00:30.3]} 32. a5
{[%clk 0:01:21.4]} 32... Bh2 {[%clk 0:00:24.3]} 33. Ke2 {[%clk 0:01:13.4]} 33...
Bf4 {[%clk 0:00:23.9]} 34. Nd3 {[%clk 0:01:13.5]} 34... Ne6 {[%clk 0:00:21.2]}
35. Ndxe5 {[%clk 0:01:07.9]} 35... Bxe5 {[%clk 0:00:20]} 36. Nxe5 {[%clk
0:01:08.8]} 36... Nc7 {[%clk 0:00:18.2]} 37. Nd3 {[%clk 0:01:05.7]} 37... Kd6
{[%clk 0:00:15.1]} 38. c4 {[%clk 0:01:02]} 38... Ne6 {[%clk 0:00:14.4]} 39. Ke3
{[%clk 0:01:01.4]} 39... Ng5 {[%clk 0:00:14]} 40. h4 {[%clk 0:01:01.2]} 40...
Ne6 {[%clk 0:00:14.3]} 41. e5+ {[%clk 0:01:01.5]} 41... Kc6 {[%clk 0:00:13.3]}
42. f4 {[%clk 0:01:01.8]} 42... Ng7 {[%clk 0:00:13.5]} 43. Ke4 {[%clk
0:00:59.1]} 43... Nf5 {[%clk 0:00:09.8]} 44. h5 {[%clk 0:00:59.5]} 44... Ne7
{[%clk 0:00:10.1]} 45. hxg6 {[%clk 0:00:59.6]} 45... hxg6 {[%clk 0:00:11]} 46.
Nc5 {[%clk 0:00:58.9]} 46... b6 {[%clk 0:00:09.4]} 47. Nb3 {[%clk 0:00:57.5]}
47... bxa5 {[%clk 0:00:09]} 48. Nxa5+ {[%clk 0:00:58.4]} 48... Kb6 {[%clk
0:00:09.5]} 49. e6 {[%clk 0:00:56.8]} 49... Nc8 {[%clk 0:00:08.1]} 50. Ke5
{[%clk 0:00:56.2]} 50... Kc7 {[%clk 0:00:09]} 51. Kf6 {[%clk 0:00:53.8]} 51...
Kd6 {[%clk 0:00:09.9]} 52. Nb7+ {[%clk 0:00:53.8]} 52... Kc7 {[%clk 0:00:10.8]}
53. Nc5 {[%clk 0:00:52]} 53... Kc6 {[%clk 0:00:10.8]} 54. Kxg6 {[%clk
0:00:52.2]} 54... Kd6 {[%clk 0:00:11.7]} 55. Kf7 {[%clk 0:00:51.5]} 55... Nb6
{[%clk 0:00:12.3]} 56. e7 {[%clk 0:00:50.7]} 56... Nxc4 {[%clk 0:00:13.2]} 57.
e8=Q {[%clk 0:00:50.9]} 57... Kd5 {[%clk 0:00:13.6]} 58. Qe4+ {[%clk 0:00:43]}
58... Kd6 {[%clk 0:00:13.8]} 59. Qd4+ {[%clk 0:00:43.8]} 59... Kc6 {[%clk
0:00:09.9]} 60. Qd7+ {[%clk 0:00:44.7]} 60... Kb6 {[%clk 0:00:10.8]} 61. Qb7#
{[%clk 0:00:45.6]} 1-0

[Event "Late-Titled-Tuesday-Blitz-January-23-2024"]
[Site "Chess.com"]
[Date "2024.01.23"]
[Round "4"]
[White "FairChess_on_YouTube"]
[Black "K_A_S_T_O_R"]
[Result "1-0"]
[WhiteElo "3092"]
[BlackElo "2890"]
[TimeControl "180+1"]
[EndTime "14:38:15 PST"]
[Termination "FairChess_on_YouTube won on time"]

1. c4 {[%clk 0:03:00.9]} 1... c5 {[%clk 0:02:55.6]} 2. g3 {[%clk 0:03:00.7]}
2... g6 {[%clk 0:02:55.1]} 3. Bg2 {[%clk 0:03:00.3]} 3... Bg7 {[%clk 0:02:55.6]}
4. Nf3 {[%clk 0:03:00.5]} 4... Nc6 {[%clk 0:02:55.5]} 5. O-O {[%clk 0:03:00]}
5... d6 {[%clk 0:02:55.2]} 6. d3 {[%clk 0:02:55.9]} 6... e6 {[%clk 0:02:54.9]}
7. Nc3 {[%clk 0:02:53]} 7... Nge7 {[%clk 0:02:54.8]} 8. Qd2 {[%clk 0:02:53.2]}
8... O-O {[%clk 0:02:49.1]} 9. b3 {[%clk 0:02:53.5]} 9... b6 {[%clk 0:02:49.2]}
10. Bb2 {[%clk 0:02:53.3]} 10... Bb7 {[%clk 0:02:49.4]} 11. Rfd1 {[%clk
0:02:48]} 11... d5 {[%clk 0:02:40.8]} 12. cxd5 {[%clk 0:02:39]} 12... exd5
{[%clk 0:02:40.8]} 13. d4 {[%clk 0:02:38]} 13... Nxd4 {[%clk 0:02:28.4]} 14.
Nxd4 {[%clk 0:02:37.3]} 14... Bxd4 {[%clk 0:02:27.9]} 15. e3 {[%clk 0:02:37.9]}
15... Bg7 {[%clk 0:02:27.3]} 16. Nxd5 {[%clk 0:02:36.9]} 16... Bxb2 {[%clk
0:02:20]} 17. Nxe7+ {[%clk 0:02:24.5]} 17... Qxe7 {[%clk 0:02:20.2]} 18. Qxb2
{[%clk 0:02:23.6]} 18... Bxg2 {[%clk 0:02:18.8]} 19. Kxg2 {[%clk 0:02:24.5]}
19... Rad8 {[%clk 0:02:15.1]} 20. Qc2 {[%clk 0:02:22.2]} 20... h5 {[%clk
0:02:06.8]} 21. Qc4 {[%clk 0:02:21.1]} 21... Rxd1 {[%clk 0:02:03.9]} 22. Rxd1
{[%clk 0:02:20.6]} 22... Rd8 {[%clk 0:02:04.5]} 23. Rxd8+ {[%clk 0:02:17.2]}
23... Qxd8 {[%clk 0:02:04.2]} 24. a4 {[%clk 0:02:17.9]} 24... Qd6 {[%clk
0:01:57]} 25. Qe4 {[%clk 0:02:09.8]} 25... Kg7 {[%clk 0:01:55.6]} 26. h3 {[%clk
0:02:09.1]} 26... Kf6 {[%clk 0:01:50.3]} 27. Qf3+ {[%clk 0:01:51.2]} 27... Ke6
{[%clk 0:01:44.1]} 28. Qe4+ {[%clk 0:01:47.6]} 28... Kf6 {[%clk 0:01:43.8]} 29.
g4 {[%clk 0:01:46.7]} 29... hxg4 {[%clk 0:01:43.4]} 30. hxg4 {[%clk 0:01:47.6]}
30... Qe6 {[%clk 0:01:43.4]} 31. Qf4+ {[%clk 0:01:46.4]} 31... Kg7 {[%clk
0:01:41.5]} 32. Qc4 {[%clk 0:01:46.9]} 32... Kf6 {[%clk 0:01:37.8]} 33. Kf3
{[%clk 0:01:39.4]} 33... Qxc4 {[%clk 0:01:30.6]} 34. bxc4 {[%clk 0:01:39.2]}
34... Ke5 {[%clk 0:01:31.2]} 35. Ke2 {[%clk 0:01:35.4]} 35... Ke4 {[%clk
0:01:18.5]} 36. f3+ {[%clk 0:01:33.4]} 36... Ke5 {[%clk 0:01:19]} 37. Kd3 {[%clk
0:01:33.9]} 37... g5 {[%clk 0:01:15.6]} 38. Kd2 {[%clk 0:01:28.3]} 38... a6
{[%clk 0:00:58]} 39. Kd3 {[%clk 0:01:26]} 39... f6 {[%clk 0:00:37]} 40. Ke2
{[%clk 0:01:25.5]} 40... Kd6 {[%clk 0:00:36.8]} 41. f4 {[%clk 0:01:22.2]} 41...
Kd7 {[%clk 0:00:29]} 42. Kd3 {[%clk 0:01:20.3]} 42... Kd6 {[%clk 0:00:27.8]} 43.
Ke4 {[%clk 0:01:19.1]} 43... Ke6 {[%clk 0:00:27.9]} 44. Kd3 {[%clk 0:01:18.4]}
44... Kd6 {[%clk 0:00:26.2]} 45. Kc3 {[%clk 0:01:15.6]} 45... Kc6 {[%clk
0:00:21.1]} 46. Kd2 {[%clk 0:01:15.9]} 46... Kd7 {[%clk 0:00:18.9]} 47. Kc2
{[%clk 0:01:04.2]} 47... Kc7 {[%clk 0:00:17.1]} 48. a5 {[%clk 0:00:49.6]} 48...
b5 {[%clk 0:00:10.9]} 49. fxg5 {[%clk 0:00:44.1]} 49... fxg5 {[%clk 0:00:10]}
50. cxb5 {[%clk 0:00:43.9]} 50... axb5 {[%clk 0:00:08.8]} 51. e4 {[%clk
0:00:44.5]} 51... Kb7 {[%clk 0:00:03.9]} 52. e5 {[%clk 0:00:44.7]} 52... b4
{[%clk 0:00:03.6]} 53. e6 {[%clk 0:00:44.5]} 1-0

[Event "Late-Titled-Tuesday-Blitz-January-23-2024"]
[Site "Chess.com"]
[Date "2024.01.23"]
[Round "4"]
[White "rasmussvane"]
[Black "Hikaru"]
[Result "0-1"]
[WhiteElo "2981"]
[BlackElo "3307"]
[TimeControl "180+1"]
[EndTime "14:38:16 PST"]
[Termination "Hikaru won on time"]

1. Nf3 {[%clk 0:02:59.3]} 1... Nf6 {[%clk 0:02:57.6]} 2. g3 {[%clk 0:02:57.6]}
2... c5 {[%clk 0:02:53.2]} 3. Bg2 {[%clk 0:02:57.1]} 3... g6 {[%clk 0:02:50.9]}
4. O-O {[%clk 0:02:54.8]} 4... Bg7 {[%clk 0:02:51.2]} 5. c4 {[%clk 0:02:50.8]}
5... O-O {[%clk 0:02:44.6]} 6. Nc3 {[%clk 0:02:49.4]} 6... d6 {[%clk 0:02:45.1]}
7. d4 {[%clk 0:02:48.8]} 7... Nc6 {[%clk 0:02:45.1]} 8. dxc5 {[%clk 0:02:43.4]}
8... dxc5 {[%clk 0:02:45.1]} 9. Be3 {[%clk 0:02:43.6]} 9... Qa5 {[%clk
0:02:34.3]} 10. Qa4 {[%clk 0:02:41]} 10... Nd7 {[%clk 0:02:28.1]} 11. Qxa5
{[%clk 0:01:56.4]} 11... Nxa5 {[%clk 0:02:29]} 12. Nd2 {[%clk 0:01:56.6]} 12...
Bxc3 {[%clk 0:02:22.6]} 13. bxc3 {[%clk 0:01:56.8]} 13... Rb8 {[%clk 0:02:23.2]}
14. Nb3 {[%clk 0:01:19.5]} 14... Nxc4 {[%clk 0:02:22.2]} 15. Bxc5 {[%clk
0:01:19]} 15... Nxc5 {[%clk 0:02:16.5]} 16. Nxc5 {[%clk 0:01:19.9]} 16... b6
{[%clk 0:02:16.7]} 17. Nb3 {[%clk 0:01:20.1]} 17... Bb7 {[%clk 0:02:09.8]} 18.
Rfd1 {[%clk 0:01:19.8]} 18... Bxg2 {[%clk 0:02:09.1]} 19. Kxg2 {[%clk
0:01:20.7]} 19... Rb7 {[%clk 0:02:08.6]} 20. Nd2 {[%clk 0:01:07.2]} 20... Nd6
{[%clk 0:01:59.1]} 21. a4 {[%clk 0:00:40.8]} 21... Rc8 {[%clk 0:01:58.7]} 22.
Ra3 {[%clk 0:00:40.8]} 22... Rc5 {[%clk 0:01:53]} 23. Rc1 {[%clk 0:00:37.8]}
23... Rd7 {[%clk 0:01:51.1]} 24. Nb3 {[%clk 0:00:33.9]} 24... Rc8 {[%clk
0:01:50.5]} 25. Nd4 {[%clk 0:00:33.8]} 25... e5 {[%clk 0:01:47.3]} 26. Nb5
{[%clk 0:00:30.2]} 26... Ne4 {[%clk 0:01:39.9]} 27. f3 {[%clk 0:00:20.9]} 27...
Nc5 {[%clk 0:01:24.5]} 28. c4 {[%clk 0:00:20.9]} 28... Rd2 {[%clk 0:01:23.3]}
29. Nc3 {[%clk 0:00:18.4]} 29... Nd3 {[%clk 0:01:09]} 30. Rd1 {[%clk 0:00:15]}
30... Rxd1 {[%clk 0:01:04.5]} 31. Nxd1 {[%clk 0:00:15.9]} 31... Nc5 {[%clk
0:01:04.9]} 32. Kf2 {[%clk 0:00:14.2]} 32... Rd8 {[%clk 0:01:00.1]} 33. Ke1
{[%clk 0:00:14.4]} 33... Rd4 {[%clk 0:00:51.7]} 34. Nb2 {[%clk 0:00:14.1]} 34...
a5 {[%clk 0:00:50.7]} 35. e3 {[%clk 0:00:09.1]} 35... Rd6 {[%clk 0:00:48.4]} 36.
Ke2 {[%clk 0:00:09.7]} 36... e4 {[%clk 0:00:47.6]} 37. fxe4 {[%clk 0:00:08.9]}
37... Nxe4 {[%clk 0:00:48.5]} 38. Nd3 {[%clk 0:00:09.5]} 38... Rc6 {[%clk
0:00:48.6]} 39. Nb2 {[%clk 0:00:08.4]} 39... Rf6 {[%clk 0:00:46.7]} 40. Nd3
{[%clk 0:00:08.3]} 40... Rc6 {[%clk 0:00:32.8]} 41. Nb2 {[%clk 0:00:08.2]} 41...
h5 {[%clk 0:00:32.6]} 42. Rb3 {[%clk 0:00:08.2]} 42... Nc5 {[%clk 0:00:30.9]}
43. Rb5 {[%clk 0:00:07.9]} 43... Kf8 {[%clk 0:00:29.1]} 44. Kf3 {[%clk
0:00:06.6]} 44... Ke7 {[%clk 0:00:25.3]} 45. Ke2 {[%clk 0:00:05.9]} 45... Kd6
{[%clk 0:00:21.4]} 46. Kf3 {[%clk 0:00:05.3]} 46... Kc7 {[%clk 0:00:21.4]} 47.
Ke2 {[%clk 0:00:05.4]} 47... Rd6 {[%clk 0:00:20.6]} 48. h4 {[%clk 0:00:01.8]}
48... Kc6 {[%clk 0:00:19.1]} 0-1

[Event "Late-Titled-Tuesday-Blitz-January-23-2024"]
[Site "Chess.com"]
[Date "2024.01.23"]
[Round "4"]
[White "GMAkobianSTL"]
[Black "StankovicIvan"]
[Result "1-0"]
[WhiteElo "2761"]
[BlackElo "2544"]
[TimeControl "180+1"]
[EndTime "14:38:17 PST"]
[Termination "GMAkobianSTL won on time"]

1. d4 {[%clk 0:03:00.9]} 1... d5 {[%clk 0:02:59.8]} 2. c4 {[%clk 0:02:55.9]}
2... c6 {[%clk 0:02:59.6]} 3. cxd5 {[%clk 0:02:50.1]} 3... cxd5 {[%clk
0:02:59.5]} 4. Nf3 {[%clk 0:02:47.9]} 4... Nf6 {[%clk 0:02:59.9]} 5. Nc3 {[%clk
0:02:44.1]} 5... a6 {[%clk 0:03:00.1]} 6. Bf4 {[%clk 0:02:42.9]} 6... Nc6 {[%clk
0:03:00.2]} 7. Rc1 {[%clk 0:02:41.9]} 7... Bf5 {[%clk 0:02:58.7]} 8. e3 {[%clk
0:02:39.6]} 8... h6 {[%clk 0:02:56.2]} 9. Ne5 {[%clk 0:02:32.9]} 9... Nxe5
{[%clk 0:02:42.9]} 10. dxe5 {[%clk 0:02:30.1]} 10... Ne4 {[%clk 0:02:38.1]} 11.
Qxd5 {[%clk 0:02:20.3]} 11... Nxc3 {[%clk 0:02:23.1]} 12. Qxd8+ {[%clk
0:02:16.7]} 12... Rxd8 {[%clk 0:02:24]} 13. Rxc3 {[%clk 0:02:15.8]} 13... e6
{[%clk 0:02:22.4]} 14. a3 {[%clk 0:02:14.5]} 14... g5 {[%clk 0:02:06.8]} 15. Bg3
{[%clk 0:02:13.8]} 15... Bg7 {[%clk 0:02:03.5]} 16. Be2 {[%clk 0:02:04.1]} 16...
O-O {[%clk 0:02:03.5]} 17. f3 {[%clk 0:01:56.1]} 17... f6 {[%clk 0:01:51.1]} 18.
e4 {[%clk 0:01:55.2]} 18... Bg6 {[%clk 0:01:50.4]} 19. Bc4 {[%clk 0:01:54.3]}
19... Bf7 {[%clk 0:01:16.4]} 20. exf6 {[%clk 0:01:48]} 20... Bxf6 {[%clk
0:01:17.3]} 21. Rc2 {[%clk 0:01:44.7]} 21... Bd4 {[%clk 0:00:54.8]} 22. Ke2
{[%clk 0:01:43.2]} 22... Rc8 {[%clk 0:00:54.7]} 23. Rhc1 {[%clk 0:01:38.1]}
23... Rfd8 {[%clk 0:00:46.9]} 24. b4 {[%clk 0:01:34.5]} 24... h5 {[%clk
0:00:32.8]} 25. h4 {[%clk 0:01:29.3]} 25... Bf6 {[%clk 0:00:25.5]} 26. hxg5
{[%clk 0:01:22.8]} 26... Bxg5 {[%clk 0:00:26.4]} 27. Rd1 {[%clk 0:01:18.2]}
27... h4 {[%clk 0:00:19]} 28. Be5 {[%clk 0:01:12.2]} 28... Rxd1 {[%clk
0:00:17.2]} 29. Kxd1 {[%clk 0:01:11.8]} 29... Kf8 {[%clk 0:00:14.9]} 30. Bb3
{[%clk 0:01:08.2]} 30... Rxc2 {[%clk 0:00:14.6]} 31. Kxc2 {[%clk 0:01:06.4]}
31... Ke7 {[%clk 0:00:15.3]} 32. Kd3 {[%clk 0:01:04.7]} 32... Bh5 {[%clk
0:00:15.9]} 33. Bd1 {[%clk 0:00:46.3]} 33... b5 {[%clk 0:00:12.9]} 34. Kc2
{[%clk 0:00:27.1]} 34... Be8 {[%clk 0:00:03.9]} 35. f4 {[%clk 0:00:25.5]} 35...
Bf6 {[%clk 0:00:02.6]} 36. Bxf6+ {[%clk 0:00:23.8]} 36... Kxf6 {[%clk
0:00:03.5]} 37. Kd3 {[%clk 0:00:21.3]} 37... e5 {[%clk 0:00:04]} 38. Ke3 {[%clk
0:00:20.6]} 38... Bd7 {[%clk 0:00:03.8]} 39. Bh5 {[%clk 0:00:19.5]} 39... h3
{[%clk 0:00:02.6]} 40. gxh3 {[%clk 0:00:18.9]} 40... Bxh3 {[%clk 0:00:03.5]} 41.
Be8 {[%clk 0:00:18.9]} 41... Bc8 {[%clk 0:00:03.6]} 42. Bc6 {[%clk 0:00:19]}
42... Ke6 {[%clk 0:00:03.1]} 43. Bd5+ {[%clk 0:00:19.3]} 43... Kd6 {[%clk
0:00:03.6]} 44. Kf3 {[%clk 0:00:16.7]} 44... exf4 {[%clk 0:00:02.2]} 45. Kxf4
{[%clk 0:00:16.5]} 45... Bd7 {[%clk 0:00:02.4]} 46. Bb7 {[%clk 0:00:16.3]} 1-0

[Event "Late-Titled-Tuesday-Blitz-January-23-2024"]
[Site "Chess.com"]
[Date "2024.01.23"]
[Round "4"]
[White "alexgo05"]
[Black "FREZZY23"]
[Result "1-0"]
[WhiteElo "2366"]
[BlackElo "2504"]
[TimeControl "180+1"]
[EndTime "14:38:18 PST"]
[Termination "alexgo05 won by resignation"]

1. Nf3 {[%clk 0:03:00.9]} 1... Nf6 {[%clk 0:02:59]} 2. b3 {[%clk 0:03:01.1]}
2... g6 {[%clk 0:02:59]} 3. Bb2 {[%clk 0:03:00.9]} 3... Bg7 {[%clk 0:02:59.5]}
4. g3 {[%clk 0:02:58.3]} 4... O-O {[%clk 0:02:59.3]} 5. Bg2 {[%clk 0:02:58.9]}
5... d5 {[%clk 0:02:54.8]} 6. O-O {[%clk 0:02:58.1]} 6... c5 {[%clk 0:02:55.3]}
7. c4 {[%clk 0:02:57.8]} 7... Nc6 {[%clk 0:02:53]} 8. cxd5 {[%clk 0:02:52.5]}
8... Nxd5 {[%clk 0:02:52.3]} 9. Bxg7 {[%clk 0:02:53]} 9... Kxg7 {[%clk
0:02:52.8]} 10. Nc3 {[%clk 0:02:53.3]} 10... b6 {[%clk 0:02:46.5]} 11. Nxd5
{[%clk 0:02:13.4]} 11... Qxd5 {[%clk 0:02:45.6]} 12. d4 {[%clk 0:02:14.3]} 12...
Bb7 {[%clk 0:02:42.2]} 13. Ne5 {[%clk 0:02:03.9]} 13... Qd6 {[%clk 0:02:25.5]}
14. Nxc6 {[%clk 0:02:02.3]} 14... Bxc6 {[%clk 0:02:25]} 15. dxc5 {[%clk
0:02:02.7]} 15... Qxd1 {[%clk 0:02:18.6]} 16. Rfxd1 {[%clk 0:02:01.2]} 16...
Bxg2 {[%clk 0:02:18.1]} 17. Kxg2 {[%clk 0:02:01.5]} 17... bxc5 {[%clk
0:02:16.9]} 18. Rac1 {[%clk 0:01:55.7]} 18... Rfc8 {[%clk 0:02:16.3]} 19. Rd7
{[%clk 0:01:52]} 19... Kf6 {[%clk 0:02:16]} 20. Rc4 {[%clk 0:01:51.8]} 20... a5
{[%clk 0:02:15.4]} 21. Rb7 {[%clk 0:01:41]} 21... a4 {[%clk 0:02:15.4]} 22. bxa4
{[%clk 0:01:40.3]} 22... Ke6 {[%clk 0:02:13.4]} 23. e4 {[%clk 0:01:36.8]} 23...
Kd6 {[%clk 0:02:12]} 24. Rb6+ {[%clk 0:01:27.9]} 24... Rc6 {[%clk 0:01:59.6]}
25. Rb5 {[%clk 0:01:27.8]} 25... f5 {[%clk 0:01:55.6]} 26. Kf3 {[%clk
0:01:21.6]} 26... e5 {[%clk 0:01:55]} 27. Ke3 {[%clk 0:01:18.9]} 27... Re8
{[%clk 0:01:33]} 28. a5 {[%clk 0:01:10.7]} 28... Re7 {[%clk 0:01:24.9]} 29. f3
{[%clk 0:01:08.8]} 29... Ra7 {[%clk 0:01:20.9]} 30. Kd3 {[%clk 0:01:07.6]} 30...
Rf7 {[%clk 0:01:12]} 31. Rc2 {[%clk 0:00:54.5]} 31... h5 {[%clk 0:00:37.7]} 32.
Kc4 {[%clk 0:00:52.3]} 32... fxe4 {[%clk 0:00:37.5]} 33. fxe4 {[%clk 0:00:48.4]}
33... Rf1 {[%clk 0:00:36.6]} 34. Rd2+ {[%clk 0:00:47.1]} 34... Ke6 {[%clk
0:00:35]} 35. Rb6 {[%clk 0:00:46.9]} 35... Rc1+ {[%clk 0:00:22.5]} 36. Kb5
{[%clk 0:00:46.5]} 36... Rxb6+ {[%clk 0:00:22.4]} 37. axb6 {[%clk 0:00:47.4]}
37... c4 {[%clk 0:00:22.3]} 38. Kc6 {[%clk 0:00:25.4]} 38... c3 {[%clk
0:00:20.4]} 39. Rd6+ {[%clk 0:00:25.5]} 39... Ke7 {[%clk 0:00:20.5]} 40. Rd5
{[%clk 0:00:25.5]} 40... c2 {[%clk 0:00:17.9]} 41. Rxe5+ {[%clk 0:00:25.6]}
41... Kf6 {[%clk 0:00:18.5]} 42. Rc5 {[%clk 0:00:26.5]} 42... g5 {[%clk
0:00:17.1]} 43. b7 {[%clk 0:00:26.2]} 43... Rb1 {[%clk 0:00:17]} 44. Rxc2 {[%clk
0:00:26.2]} 44... Ke5 {[%clk 0:00:17.9]} 45. Kc7 {[%clk 0:00:26.1]} 45... Kxe4
{[%clk 0:00:18.5]} 46. b8=Q {[%clk 0:00:25.9]} 46... Rxb8 {[%clk 0:00:19.4]} 47.
Kxb8 {[%clk 0:00:26.7]} 47... Kf3 {[%clk 0:00:20.3]} 48. a4 {[%clk 0:00:26.5]}
48... Kg4 {[%clk 0:00:21.2]} 49. a5 {[%clk 0:00:26.9]} 49... Kh3 {[%clk
0:00:22.1]} 50. a6 {[%clk 0:00:27.3]} 50... g4 {[%clk 0:00:23]} 51. a7 {[%clk
0:00:26.3]} 51... h4 {[%clk 0:00:23.9]} 52. gxh4 {[%clk 0:00:26]} 52... Kxh4
{[%clk 0:00:20.9]} 53. h3 {[%clk 0:00:26.4]} 53... Kxh3 {[%clk 0:00:20.1]} 54.
a8=Q {[%clk 0:00:25.6]} 54... g3 {[%clk 0:00:20.3]} 55. Qe4 {[%clk 0:00:24.6]}
55... g2 {[%clk 0:00:20]} 56. Qxg2+ {[%clk 0:00:21.8]} 56... Kh4 {[%clk
0:00:20.9]} 1-0

[Event "Late-Titled-Tuesday-Blitz-January-23-2024"]
[Site "Chess.com"]
[Date "2024.01.23"]
[Round "4"]
[White "JoakimVonAnd"]
[Black "WPWPWP-2015"]
[Result "0-1"]
[WhiteElo "2617"]
[BlackElo "2495"]
[TimeControl "180+1"]
[EndTime "14:38:20 PST"]
[Termination "WPWPWP-2015 won by resignation"]

1. c4 {[%clk 0:03:00.3]} 1... e5 {[%clk 0:02:59.3]} 2. d3 {[%clk 0:02:58.2]}
2... Nf6 {[%clk 0:02:59.4]} 3. Nf3 {[%clk 0:02:58.1]} 3... d6 {[%clk 0:02:57.9]}
4. g3 {[%clk 0:02:57.3]} 4... Be7 {[%clk 0:02:57.2]} 5. Bg2 {[%clk 0:02:57.6]}
5... O-O {[%clk 0:02:57.3]} 6. O-O {[%clk 0:02:58]} 6... c6 {[%clk 0:02:57]} 7.
b4 {[%clk 0:02:57.7]} 7... a5 {[%clk 0:02:56.6]} 8. b5 {[%clk 0:02:56.7]} 8...
Bg4 {[%clk 0:02:54.1]} 9. Nc3 {[%clk 0:02:54.7]} 9... Qc7 {[%clk 0:02:54]} 10.
Rb1 {[%clk 0:02:54.1]} 10... Nbd7 {[%clk 0:02:53.6]} 11. a4 {[%clk 0:02:52.9]}
11... h6 {[%clk 0:02:49.4]} 12. Ba3 {[%clk 0:02:48.5]} 12... Rfe8 {[%clk
0:02:47.7]} 13. Ne4 {[%clk 0:02:47.4]} 13... Nxe4 {[%clk 0:02:44.3]} 14. dxe4
{[%clk 0:02:48.3]} 14... Nc5 {[%clk 0:02:43.5]} 15. Bxc5 {[%clk 0:02:41.1]}
15... dxc5 {[%clk 0:02:43]} 16. Ne1 {[%clk 0:02:26.5]} 16... Rad8 {[%clk
0:02:37.1]} 17. Nd3 {[%clk 0:02:26]} 17... Rd4 {[%clk 0:02:34.6]} 18. Qc2 {[%clk
0:02:25.9]} 18... Be6 {[%clk 0:02:32.2]} 19. Nb2 {[%clk 0:02:23.8]} 19... Red8
{[%clk 0:02:31.6]} 20. Rfd1 {[%clk 0:02:21.4]} 20... cxb5 {[%clk 0:02:30.3]} 21.
axb5 {[%clk 0:02:10.6]} 21... b6 {[%clk 0:02:25.5]} 22. e3 {[%clk 0:02:09.2]}
22... R4d7 {[%clk 0:02:21.9]} 23. Rd5 {[%clk 0:02:01.9]} 23... Bg4 {[%clk
0:02:15.3]} 24. Nd3 {[%clk 0:01:55.3]} 24... f6 {[%clk 0:02:08.6]} 25. f4 {[%clk
0:01:50.1]} 25... Be6 {[%clk 0:01:55.2]} 26. Rf1 {[%clk 0:01:44.6]} 26... Bd6
{[%clk 0:01:50]} 27. fxe5 {[%clk 0:01:05.7]} 27... fxe5 {[%clk 0:01:41.2]} 28.
Rf5 {[%clk 0:01:03.4]} 28... Bxd5 {[%clk 0:01:37.5]} 29. exd5 {[%clk 0:01:03.3]}
29... Rf7 {[%clk 0:01:35.3]} 30. Be4 {[%clk 0:01:02.6]} 30... Rdf8 {[%clk
0:01:31.8]} 31. Nf2 {[%clk 0:01:02.5]} 31... Qd7 {[%clk 0:01:23.6]} 32. g4
{[%clk 0:01:02]} 32... Qe7 {[%clk 0:01:14.3]} 33. Kg2 {[%clk 0:00:44.6]} 33...
Qh4 {[%clk 0:01:10.4]} 34. h3 {[%clk 0:00:44.8]} 34... Rxf5 {[%clk 0:00:57.4]}
35. Bxf5 {[%clk 0:00:44.9]} 35... g6 {[%clk 0:00:37.9]} 36. Bxg6 {[%clk
0:00:28.9]} 36... Qg5 {[%clk 0:00:37.6]} 37. Bf5 {[%clk 0:00:20.1]} 37... Qxe3
{[%clk 0:00:34.9]} 38. Ne4 {[%clk 0:00:20.5]} 38... Be7 {[%clk 0:00:32.8]} 39.
d6 {[%clk 0:00:21.1]} 39... Bh4 {[%clk 0:00:31.1]} 40. d7 {[%clk 0:00:21.7]}
40... a4 {[%clk 0:00:26.7]} 41. Qd1 {[%clk 0:00:16.3]} 41... Qd4 {[%clk
0:00:18.7]} 42. Qc1 {[%clk 0:00:14.4]} 42... Rxf5 {[%clk 0:00:12.7]} 43. gxf5
{[%clk 0:00:14.3]} 43... Qxe4+ {[%clk 0:00:12.6]} 44. Kg1 {[%clk 0:00:13.8]}
44... Qxf5 {[%clk 0:00:06.5]} 45. Qxh6 {[%clk 0:00:12.7]} 45... Qg5+ {[%clk
0:00:06.5]} 46. Qxg5+ {[%clk 0:00:10.1]} 46... Bxg5 {[%clk 0:00:07.4]} 47. Kf2
{[%clk 0:00:10.7]} 47... a3 {[%clk 0:00:07.4]} 0-1